fUSD/lending_fUSD_20250602
["ID","MTS","AMOUNT","RATE_DAILY","PERIOD"]
[363758721,1748862662462,-12500.0,0.00019983,2]
[363758722,1748862662471,-12500.0,0.00019992,2]
[363758723,1748862662479,-8091.7751937,0.00019996,2]
[363758724,1748862662488,-2747.8482341,0.00019996,2]
[363758725,1748862662496,-300.0,0.00019999,2]
[363758726,1748862662504,-300.0,0.00019999,2]
[363758727,1748862662512,-300.0,0.00019999,2]
[363758728,1748862662521,-300.0,0.00019999,2]
[363758729,1748862662530,-300.0,0.00019999,2]
[363758730,1748862662540,-815.49176001,0.00019999,2]
[363758731,1748862662551,-1000.0,0.00019999,2]
[363758732,1748862662560,-500.0,0.00019999,2]
[363758733,1748862662570,-500.0,0.00019999,2]
[363758734,1748862662579,-500.0,0.00019999,2]
[363758735,1748862662588,-500.0,0.00019999,2]
[363758736,1748862662598,-500.0,0.00019999,2]
[363758737,1748862662607,-500.0,0.00019999,2]
[363758738,1748862662616,-500.0,0.00019999,2]
[363758739,1748862662625,-500.0,0.00019999,2]
[363758740,1748862662634,-500.0,0.00019999,2]
[363758741,1748862662643,-283.4,0.00019999,2]
[363758742,1748862662653,-572.19,0.00019999,2]
[363758743,1748862662663,-500.0,0.00019999,2]
[363758744,1748862662672,-500.0,0.00019999,2]
[363758745,1748862662681,-500.0,0.00019999,2]
[363758746,1748862662691,-407.42040637,0.00019999,2]
[363758747,1748862662701,-219.84545842,0.00019999,2]
[363758748,1748862662710,-222.38418659,0.00019999,2]
[363758749,1748862662719,-451.42008401,0.00019999,2]
[363758750,1748862662729,-500.0,0.00019999,2]
[363758751,1748862662739,-564.18373021,0.00019999,2]
[363758752,1748862662750,-106957.42836103,0.0002,2]
[363758753,1748862662760,-150.36137925,0.0002,4]
[363758754,1748862662770,-556458.22991865,0.0002,2]
[363758755,1748862662780,-3950.0,0.0002,2]
[363758756,1748862662790,-1256.50222913,0.0002,2]
[363758757,1748862662801,-11888.4969659,0.0002,2]
[363758758,1748862662811,-1013.84143336,0.0002,2]
[363758759,1748862662820,-2777.69952826,0.0002,2]
[363758760,1748862662830,-210.0,0.0002,2]
[363758761,1748862662843,-210.0,0.0002,2]
[363758762,1748862662852,-210.0,0.0002,2]
[363758763,1748862662862,-210.0,0.0002,2]
[363758764,1748862662871,-210.0,0.0002,2]
[363758765,1748862662882,-210.0,0.0002,2]
[363758766,1748862662892,-210.0,0.0002,2]
[363758767,1748862662901,-210.0,0.0002,2]
[363758768,1748862662911,-210.0,0.0002,2]
[363758769,1748862662921,-210.0,0.0002,2]
[363758770,1748862662931,-207863.47225701,0.0002,2]
[363758771,1748862663330,203.0,0.00018119,2]
[363758772,1748862663740,-151.0,0.00019123,2]
[363758773,1748862663750,-360.34395095,0.00019178,2]
[363758774,1748862663770,-1319.17604905,0.00019178,2]
[363758775,1748862663781,-343.69,0.00019178,2]
[363758776,1748862663792,-420.0,0.00019315,2]
[363758777,1748862663805,-1679.52,0.00019315,2]
[363758778,1748862663816,-420.0,0.00019452,2]
[363758779,1748862663828,-1679.52,0.00019452,2]
[363758780,1748862663842,-157.1839878,0.00019589,2]
[363758781,1748862664247,-262.8160122,0.00019589,2]
[363758782,1748862664258,-1679.52,0.00019589,2]
[363758783,1748862664269,-420.0,0.00019726,2]
[363758784,1748862664279,-733.05354645,0.00019726,2]
[363758785,1748862750108,535.94,0.0001896,2]
[363758786,1748862758825,631.27,0.00017032,2]
[363758787,1748862778403,200.0,0.00018865,2]
[363758788,1748862781589,494.21,0.00023,30]
[363758789,1748862786759,197.46366026,0.00018941,2]
[363758790,1748862873569,17814.96,0.00018784,2]
[363758791,1748862884364,4548.0,0.00019,2]
[363758792,1748862979359,163.39,0.0001871,2]
[363758793,1748863007566,300.98465163,0.00019,3]
[363758794,1748863134765,1000.0,0.00018669,2]
[363758795,1748863242231,22159.18,0.0001862,2]
[363758796,1748863252583,200.0,0.00018593,2]
[363758798,1748863394976,575.74,0.00018476,2]
[363758801,1748863487380,247.08,0.00013699,2]
[363758804,1748863509058,150.38157732,0.00018,2]
[363758805,1748863509096,150.0,0.00018,2]
[363758806,1748863509137,150.0,0.00018286,2]
[363758807,1748863509190,150.0,0.00018571,2]
[363758808,1748863509266,150.0,0.00018857,2]
[363758809,1748863509656,150.0,0.00018,2]
[363758810,1748863509687,150.0,0.000185,2]
[363758811,1748863509766,150.0,0.00019,2]
[363758812,1748863510064,150.0,0.00018,2]
[363758813,1748863510125,150.0,0.0001825,2]
[363758814,1748863510227,150.0,0.000185,2]
[363758815,1748863510276,150.0,0.0001875,2]
[363758816,1748863510407,150.0,0.00019,2]
[363758817,1748863512238,150.53292604,0.00018,2]
[363758818,1748863513994,150.0,0.00018,2]
[363758819,1748863514028,150.0,0.00019,2]
[363758820,1748863516203,502.0,0.00019,2]
[363758821,1748863519716,150.0,0.00018,2]
[363758822,1748863519784,150.0,0.00019,2]
[363758823,1748863524293,179.31,0.00018451,2]
[363758824,1748863527341,150.55184531,0.00018,2]
[363758825,1748863527622,150.0,0.00018,2]
[363758826,1748863527692,150.0,0.00018667,2]
[363758827,1748863527916,150.36137925,0.00018,2]
[363758830,1748863629847,574.0,0.00018,2]
[363758849,1748863831890,-197.46366026,0.00019005,2]
[363758851,1748863831900,-400.0,0.00019033,2]
[363758852,1748863831910,-121.78810632,0.00019096,2]
[363758853,1748863831944,-278.21189368,0.00019096,2]
[363758854,1748863831954,-150.0,0.00019143,2]
[363758855,1748863831963,-300.0,0.00019165,2]
[363758856,1748863831973,-1200.0,0.00019165,2]
[363758857,1748863831983,-151.0,0.00019166,2]
[363758858,1748863831993,-2146.58906766,0.00019166,2]
[363758859,1748863832004,-634.21585953,0.00019166,2]
[363758860,1748863832015,-417.74206616,0.00019166,2]
[363758861,1748863832104,-6018.30900665,0.00019166,2]
[363758862,1748863832114,-151.0,0.00019166,2]
[363758863,1748863832124,-151.0,0.00019166,2]
[363758864,1748863832134,-207.4,0.00019166,2]
[363758865,1748863832144,-7486.41160231,0.00019168,2]
[363758866,1748863832153,-420.0,0.00019178,2]
[363758867,1748863832163,-420.0,0.00019178,2]
[363758868,1748863832172,-420.0,0.00019178,2]
[363758869,1748863832182,-535.2066566,0.00019178,2]
[363758870,1748863832191,-420.0,0.00019178,2]
[363758871,1748863832200,-423.01576848,0.00019178,2]
[363758872,1748863832210,-420.0,0.00019178,2]
[363758873,1748863832220,-374.87652035,0.00019178,2]
[363758874,1748863832229,-514.54,0.00019178,2]
[363758875,1748863832240,-160.1,0.00019178,2]
[363758876,1748863832251,-420.0,0.00019178,2]
[363758877,1748863832261,-420.0,0.00019178,2]
[363758879,1748863832270,-420.0,0.00019178,2]
[363758881,1748863832278,-429.20806078,0.00019178,2]
[363758882,1748863832289,-420.0,0.00019178,2]
[363758883,1748863832298,-420.0,0.00019178,2]
[363758884,1748863832308,-420.0,0.00019178,2]
[363758885,1748863832318,-420.0,0.00019178,2]
[363758886,1748863832327,-420.0,0.00019178,2]
[363758887,1748863832336,-480.09,0.00019178,2]
[363758888,1748863832346,-564.3,0.00019178,2]
[363758889,1748863832356,-218.61,0.00019178,2]
[363758890,1748863832365,-420.0,0.00019178,2]
[363758891,1748863832375,-420.0,0.00019178,2]
[363758892,1748863832384,-536.87,0.00019178,2]
[363758894,1748863832394,-569.52,0.00019178,2]
[363758896,1748863832403,-420.0,0.00019178,2]
[363758897,1748863832413,-437.13,0.00019178,2]
[363758898,1748863832423,-420.0,0.00019178,2]
[363758899,1748863832432,-420.0,0.00019178,2]
[363758900,1748863832442,-420.0,0.00019178,2]
[363758901,1748863832451,-307.36,0.00019178,2]
[363758902,1748863832461,-420.0,0.00019178,2]
[363758903,1748863832471,-420.0,0.00019178,2]
[363758904,1748863832481,-420.0,0.00019178,2]
[363758905,1748863832491,-420.0,0.00019178,2]
[363758906,1748863832500,-420.0,0.00019178,2]
[363758907,1748863832509,-420.0,0.00019178,2]
[363758908,1748863832519,-420.0,0.00019178,2]
[363758909,1748863832528,-420.0,0.00019178,2]
[363758910,1748863832538,-205.84,0.00019178,2]
[363758911,1748863832547,-420.0,0.00019178,2]
[363758912,1748863832557,-401.6509527,0.00019178,2]
[363758913,1748863832567,-420.0,0.00019178,2]
[363758914,1748863832577,-420.0,0.00019178,2]
[363758916,1748863832586,-322.0,0.00019178,2]
[363758917,1748863832595,-514.5,0.00019178,2]
[363758918,1748863832605,-420.0,0.00019178,2]
[363758919,1748863832615,-420.0,0.00019178,2]
[363758920,1748863832625,-420.0,0.00019178,2]
[363758921,1748863832635,-558.34,0.00019178,2]
[363758922,1748863832644,-420.0,0.00019178,2]
[363758923,1748863832654,-420.0,0.00019178,2]
[363758924,1748863832664,-420.0,0.00019178,2]
[363758926,1748863832674,-494.96,0.00019178,2]
[363758928,1748863832683,-420.0,0.00019178,2]
[363758930,1748863832692,-420.0,0.00019178,2]
[363758932,1748863832701,-420.0,0.00019178,2]
[363758934,1748863832711,-525.46,0.00019178,2]
[363758936,1748863832720,-420.0,0.00019178,2]
[363758938,1748863832729,-420.0,0.00019178,2]
[363758940,1748863832739,-581.38,0.00019178,2]
[363758942,1748863832748,-650.4,0.00019178,2]
[363758944,1748863832758,-420.0,0.00019178,2]
[363758946,1748863832768,-420.0,0.00019178,2]
[363758948,1748863832777,-420.0,0.00019178,2]
[363758950,1748863832787,-420.0,0.00019178,2]
[363758952,1748863832796,-420.0,0.00019178,2]
[363758954,1748863832805,-357.72012399,0.00019178,2]
[363758957,1748863832828,-62.27987601,0.00019178,2]
[363758959,1748863832837,-412.07,0.00019178,2]
[363758961,1748863832847,-420.0,0.00019178,2]
[363758963,1748863832856,-420.0,0.00019178,2]
[363758965,1748863832867,-551.26,0.00019178,2]
[363758967,1748863832876,-741.24,0.00019178,2]
[363758969,1748863832885,-420.0,0.00019178,2]
[363758971,1748863832895,-420.0,0.00019178,2]
[363758973,1748863832904,-420.0,0.00019178,2]
[363758975,1748863832913,-2080.76,0.00019178,2]
[363758977,1748863832922,-420.0,0.00019178,2]
[363758979,1748863832931,-478.2,0.00019178,2]
[363758981,1748863832940,-420.0,0.00019178,2]
[363758983,1748863832949,-420.0,0.00019178,2]
[363758985,1748863832959,-420.0,0.00019178,2]
[363758987,1748863832968,-420.0,0.00019178,2]
[363758989,1748863832977,-420.0,0.00019178,2]
[363758991,1748863832987,-420.0,0.00019178,2]
[363758993,1748863832997,-420.0,0.00019178,2]
[363758995,1748863833007,-420.0,0.00019178,2]
[363758997,1748863833017,-420.0,0.00019178,2]
[363758999,1748863833027,-420.0,0.00019178,2]
[363759001,1748863833037,-544.56,0.00019178,2]
[363759003,1748863833048,-420.0,0.00019178,2]
[363759005,1748863833058,-420.0,0.00019178,2]
[363759007,1748863833070,-420.0,0.00019178,2]
[363759009,1748863833081,-398.9,0.00019178,2]
[363759011,1748863833092,-420.0,0.00019178,2]
[363759013,1748863833103,-420.0,0.00019178,2]
[363759015,1748863833113,-420.0,0.00019178,2]
[363759017,1748863833124,-420.0,0.00019178,2]
[363759019,1748863833135,-420.0,0.00019178,2]
[363759021,1748863833146,-420.0,0.00019178,2]
[363759024,1748863833158,-420.0,0.00019178,2]
[363759025,1748863833168,-696.91,0.00019178,2]
[363759027,1748863833178,-420.0,0.00019178,2]
[363759029,1748863833188,-420.0,0.00019178,2]
[363759032,1748863833198,-420.0,0.00019178,2]
[363759033,1748863833208,-420.0,0.00019178,2]
[363759036,1748863833218,-729.51335477,0.00019178,2]
[363759038,1748863833228,-420.0,0.00019178,2]
[363759039,1748863833243,-420.0,0.00019178,2]
[363759042,1748863833254,-441.68,0.00019178,2]
[363759043,1748863833264,-165.5,0.00019178,2]
[363759046,1748863833274,-420.0,0.00019178,2]
[363759047,1748863833285,-420.0,0.00019178,2]
[363759049,1748863833295,-410.0,0.00019178,2]
[363759052,1748863833305,-420.0,0.00019178,2]
[363759054,1748863833315,-420.0,0.00019178,2]
[363759056,1748863833327,-420.0,0.00019178,2]
[363759058,1748863833338,-420.0,0.00019178,2]
[363759059,1748863833349,-495.66247277,0.00019178,2]
[363759061,1748863833360,-420.0,0.00019178,2]
[363759063,1748863833370,-420.0,0.00019178,2]
[363759066,1748863833380,-1139.9,0.00019178,2]
[363759068,1748863833390,-420.0,0.00019178,2]
[363759069,1748863833400,-420.0,0.00019178,2]
[363759072,1748863833410,-446.71,0.00019178,2]
[363759074,1748863833420,-420.0,0.00019178,2]
[363759076,1748863833431,-420.0,0.00019178,2]
[363759078,1748863833440,-420.0,0.00019178,2]
[363759080,1748863833450,-420.0,0.00019178,2]
[363759082,1748863833460,-247.00866192,0.00019178,2]
[363759084,1748863833470,-420.0,0.00019178,2]
[363759086,1748863833480,-420.0,0.00019178,2]
[363759088,1748863833490,-486.20218443,0.00019178,2]
[363759090,1748863833500,-219.27831932,0.00019178,2]
[363759092,1748863833510,-420.0,0.00019178,2]
[363759094,1748863833520,-420.0,0.00019178,2]
[363759096,1748863833530,-420.0,0.00019178,2]
[363759098,1748863833539,-1033.38,0.00019178,2]
[363759099,1748863833548,-685.68,0.00019178,2]
[363759101,1748863833558,-420.0,0.00019178,2]
[363759103,1748863833568,-420.0,0.00019178,2]
[363759105,1748863833578,-420.0,0.00019178,2]
[363759107,1748863833589,-420.0,0.00019178,2]
[363759109,1748863833599,-420.0,0.00019178,2]
[363759111,1748863833608,-420.0,0.00019178,2]
[363759113,1748863833618,-420.0,0.00019178,2]
[363759115,1748863833628,-420.0,0.00019178,2]
[363759117,1748863833638,-420.0,0.00019178,2]
[363759119,1748863833647,-420.0,0.00019178,2]
[363759121,1748863833657,-420.0,0.00019178,2]
[363759123,1748863833667,-420.0,0.00019178,2]
[363759125,1748863833678,-420.0,0.00019178,2]
[363759127,1748863833687,-420.0,0.00019178,2]
[363759129,1748863833697,-420.0,0.00019178,2]
[363759131,1748863833706,-420.0,0.00019178,2]
[363759133,1748863833716,-420.0,0.00019178,2]
[363759135,1748863833725,-1563.08,0.00019178,2]
[363759137,1748863833735,-420.0,0.00019178,2]
[363759139,1748863833745,-420.0,0.00019178,2]
[363759141,1748863833754,-420.0,0.00019178,2]
[363759143,1748863833764,-420.0,0.00019178,2]
[363759145,1748863833773,-420.0,0.00019178,2]
[363759147,1748863833782,-420.0,0.00019178,2]
[363759149,1748863833792,-420.0,0.00019178,2]
[363759151,1748863833800,-420.0,0.00019178,2]
[363759153,1748863833809,-420.0,0.00019178,2]
[363759155,1748863833818,-697.7,0.00019178,2]
[363759157,1748863833828,-420.0,0.00019178,2]
[363759159,1748863833836,-420.0,0.00019178,2]
[363759161,1748863833845,-420.0,0.00019178,2]
[363759163,1748863833854,-420.0,0.00019178,2]
[363759165,1748863833862,-420.0,0.00019178,2]
[363759167,1748863833871,-420.0,0.00019178,2]
[363759170,1748863833881,-420.0,0.00019178,2]
[363759172,1748863833891,-444.51,0.00019178,2]
[363759173,1748863833899,-420.0,0.00019178,2]
[363759175,1748863833907,-420.0,0.00019178,2]
[363759177,1748863833916,-920.28,0.00019178,2]
[363759179,1748863833924,-420.0,0.00019178,2]
[363759181,1748863833933,-420.0,0.00019178,2]
[363759183,1748863833940,-420.0,0.00019178,2]
[363759185,1748863833949,-420.0,0.00019178,2]
[363759187,1748863833958,-420.0,0.00019178,2]
[363759189,1748863833967,-420.0,0.00019178,2]
[363759191,1748863833976,-420.0,0.00019178,2]
[363759193,1748863833985,-420.0,0.00019178,2]
[363759195,1748863833995,-420.0,0.00019178,2]
[363759197,1748863834004,-420.0,0.00019178,2]
[363759199,1748863834014,-420.0,0.00019178,2]
[363759201,1748863834024,-420.0,0.00019178,2]
[363759203,1748863834034,-420.0,0.00019178,2]
[363759205,1748863834044,-1441.74,0.00019178,2]
[363759207,1748863834054,-508.73,0.00019178,2]
[363759209,1748863834064,-420.0,0.00019178,2]
[363759211,1748863834077,-420.0,0.00019178,2]
[363759213,1748863834087,-477.68277111,0.00019178,2]
[363759215,1748863834098,-420.0,0.00019178,2]
[363759217,1748863834108,-420.0,0.00019178,2]
[363759219,1748863834118,-420.0,0.00019178,2]
[363759221,1748863834129,-5096.47,0.00019178,2]
[363759223,1748863834139,-420.0,0.00019178,2]
[363759225,1748863834150,-420.0,0.00019178,2]
[363759227,1748863834160,-420.0,0.00019178,2]
[363759229,1748863834170,-1864.33,0.00019178,2]
[363759231,1748863834179,-420.0,0.00019178,2]
[363759233,1748863834190,-420.0,0.00019178,2]
[363759235,1748863834199,-420.0,0.00019178,2]
[363759237,1748863834209,-420.0,0.00019178,2]
[363759239,1748863834220,-420.0,0.00019178,2]
[363759241,1748863834230,-420.0,0.00019178,2]
[363759243,1748863834242,-420.0,0.00019178,2]
[363759245,1748863834253,-420.0,0.00019178,2]
[363759247,1748863834263,-453.58,0.00019178,2]
[363759249,1748863834273,-420.0,0.00019178,2]
[363759250,1748863834283,-1006.31,0.00019178,2]
[363759252,1748863834293,-729.3,0.00019178,2]
[363759254,1748863834304,-420.0,0.00019178,2]
[363759256,1748863834314,-420.0,0.00019178,2]
[363759258,1748863834326,-420.0,0.00019178,2]
[363759260,1748863834336,-420.0,0.00019178,2]
[363759262,1748863834346,-420.0,0.00019178,2]
[363759264,1748863834355,-420.0,0.00019178,2]
[363759266,1748863834365,-1267.46,0.00019178,2]
[363759268,1748863834374,-420.0,0.00019178,2]
[363759270,1748863834386,-254.5,0.00019178,2]
[363759272,1748863834395,-420.0,0.00019178,2]
[363759275,1748863834406,-434.02,0.00019178,2]
[363759277,1748863834417,-420.0,0.00019178,2]
[363759279,1748863834426,-994.31,0.00019178,2]
[363759281,1748863834436,-1022.06,0.00019178,2]
[363759283,1748863834446,-420.0,0.00019178,2]
[363759285,1748863834455,-420.0,0.00019178,2]
[363759287,1748863834464,-420.0,0.00019178,2]
[363759289,1748863834473,-705.39,0.00019178,2]
[363759291,1748863834484,-420.0,0.00019178,2]
[363759293,1748863834494,-305.04,0.00019178,2]
[363759295,1748863834503,-420.0,0.00019178,2]
[363759297,1748863834513,-420.0,0.00019178,2]
[363759299,1748863834523,-218.64,0.00019178,2]
[363759300,1748863834532,-420.0,0.00019178,2]
[363759302,1748863834540,-420.0,0.00019178,2]
[363759304,1748863834550,-838.68,0.00019178,2]
[363759306,1748863834559,-420.0,0.00019178,2]
[363759309,1748863834568,-1214.36,0.00019178,2]
[363759311,1748863834578,-580.06,0.00019178,2]
[363759313,1748863834587,-420.0,0.00019178,2]
[363759315,1748863834598,-420.0,0.00019178,2]
[363759317,1748863834608,-540.5,0.00019178,2]
[363759319,1748863834617,-420.0,0.00019178,2]
[363759321,1748863834627,-8967.04,0.00019178,2]
[363759323,1748863834636,-420.0,0.00019178,2]
[363759324,1748863834646,-420.0,0.00019178,2]
[363759326,1748863834656,-4087.99,0.00019178,2]
[363759328,1748863834666,-420.0,0.00019178,2]
[363759330,1748863834675,-420.0,0.00019178,2]
[363759332,1748863834684,-561.81,0.00019178,2]
[363759334,1748863834694,-739.85,0.00019178,2]
[363759336,1748863834704,-420.0,0.00019178,2]
[363759338,1748863834713,-747.62,0.00019178,2]
[363759340,1748863834723,-420.0,0.00019178,2]
[363759342,1748863834732,-420.0,0.00019178,2]
[363759345,1748863834742,-420.0,0.00019178,2]
[363759347,1748863834751,-420.0,0.00019178,2]
[363759349,1748863834760,-420.0,0.00019178,2]
[363759351,1748863834770,-420.0,0.00019178,2]
[363759353,1748863834780,-976.1,0.00019178,2]
[363759355,1748863834789,-420.0,0.00019178,2]
[363759357,1748863834799,-420.0,0.00019178,2]
[363759358,1748863834808,-1238.52,0.00019178,2]
[363759361,1748863834818,-420.0,0.00019178,2]
[363759363,1748863834827,-634.42,0.00019178,2]
[363759365,1748863834836,-420.0,0.00019178,2]
[363759367,1748863834845,-420.0,0.00019178,2]
[363759369,1748863834855,-1789.33,0.00019178,2]
[363759371,1748863834864,-420.0,0.00019178,2]
[363759373,1748863834874,-443.56,0.00019178,2]
[363759375,1748863834884,-994.08,0.00019178,2]
[363759376,1748863834902,-420.0,0.00019178,2]
[363759378,1748863834911,-335.5,0.00019178,2]
[363759380,1748863834921,-303.92,0.00019178,2]
[363759403,1748863835123,-420.0,0.00019178,2]
[363759405,1748863835132,-423.13478446,0.00019178,2]
[363759407,1748863835141,-420.0,0.00019178,2]
[363759409,1748863835150,-420.0,0.00019178,2]
[363759411,1748863835159,-420.0,0.00019178,2]
[363759413,1748863835168,-420.0,0.00019178,2]
[363759415,1748863835176,-420.0,0.00019178,2]
[363759417,1748863835186,-420.0,0.00019178,2]
[363759419,1748863835195,-420.0,0.00019178,2]
[363759421,1748863835203,-420.0,0.00019178,2]
[363759423,1748863835211,-420.0,0.00019178,2]
[363759425,1748863835219,-420.0,0.00019178,2]
[363759427,1748863835228,-156.14792253,0.00019178,2]
[363759429,1748863835238,-1691.37,0.00019178,2]
[363759431,1748863835250,-420.0,0.00019178,2]
[363759433,1748863835257,-151.0,0.00019178,2]
[363759435,1748863835264,-169.44,0.00019178,2]
[363759436,1748863835272,-151.0,0.00019209,2]
[363759437,1748863835282,-561.09149514,0.00019215,2]
[363759438,1748863835291,-151.0,0.00019224,2]
[363759439,1748863835300,-151.0,0.0001923,2]
[363759440,1748863835309,-150.0,0.0001925,4]
[363759441,1748863835318,-631.27,0.00019295,2]
[363759442,1748863835327,-861.6,0.00019305,2]
[363759443,1748863835336,-500.0,0.00019314,2]
[363759444,1748863835346,-420.0,0.00019315,2]
[363759445,1748863835356,-420.0,0.00019315,2]
[363759447,1748863835364,-420.0,0.00019315,2]
[363759449,1748863835372,-420.0,0.00019315,2]
[363759451,1748863835381,-420.0,0.00019315,2]
[363759453,1748863835391,-420.0,0.00019315,2]
[363759455,1748863835401,-420.0,0.00019315,2]
[363759457,1748863835411,-420.0,0.00019315,2]
[363759459,1748863835420,-205.54,0.00019315,2]
[363759461,1748863835430,-420.0,0.00019315,2]
[363759463,1748863835439,-420.0,0.00019315,2]
[363759465,1748863835448,-420.0,0.00019315,2]
[363759467,1748863835458,-420.0,0.00019315,2]
[363759469,1748863835467,-581.38,0.00019315,2]
[363759471,1748863835478,-650.4,0.00019315,2]
[363759473,1748863835488,-420.0,0.00019315,2]
[363759475,1748863835497,-513.04,0.00019315,2]
[363759477,1748863835507,-420.0,0.00019315,2]
[363759479,1748863835516,-741.24,0.00019315,2]
[363759481,1748863835526,-2080.76,0.00019315,2]
[363759483,1748863835535,-478.2,0.00019315,2]
[363759485,1748863835546,-420.0,0.00019315,2]
[363759487,1748863835561,-420.0,0.00019315,2]
[363759489,1748863835571,-420.0,0.00019315,2]
[363759491,1748863835581,-420.0,0.00019315,2]
[363759493,1748863835591,-420.0,0.00019315,2]
[363759495,1748863835600,-350.94,0.00019315,2]
[363759497,1748863835610,-544.56,0.00019315,2]
[363759499,1748863835622,-420.0,0.00019315,2]
[363759501,1748863835631,-420.0,0.00019315,2]
[363759503,1748863835639,-420.0,0.00019315,2]
[363759505,1748863835648,-420.0,0.00019315,2]
[363759507,1748863835657,-696.91,0.00019315,2]
[363759509,1748863835666,-420.0,0.00019315,2]
[363759511,1748863835675,-420.0,0.00019315,2]
[363759513,1748863835684,-420.0,0.00019315,2]
[363759515,1748863835693,-441.68,0.00019315,2]
[363759517,1748863835702,-420.0,0.00019315,2]
[363759519,1748863835712,-420.0,0.00019315,2]
[363759521,1748863835721,-1139.9,0.00019315,2]
[363759523,1748863835730,-446.71,0.00019315,2]
[363759525,1748863835739,-420.0,0.00019315,2]
[363759527,1748863835748,-420.0,0.00019315,2]
[363759529,1748863835757,-1033.38,0.00019315,2]
[363759531,1748863835767,-685.68,0.00019315,2]
[363759533,1748863835775,-420.0,0.00019315,2]
[363759535,1748863835785,-420.0,0.00019315,2]
[363759537,1748863835795,-420.0,0.00019315,2]
[363759539,1748863835804,-420.0,0.00019315,2]
[363759541,1748863835814,-420.0,0.00019315,2]
[363759543,1748863835823,-362.3,0.00019315,2]
[363759545,1748863835833,-420.0,0.00019315,2]
[363759547,1748863835842,-1563.08,0.00019315,2]
[363759549,1748863835851,-564.18,0.00019315,2]
[363759551,1748863835861,-503.43514672,0.00019315,2]
[363759553,1748863835871,-420.0,0.00019315,2]
[363759555,1748863835880,-420.0,0.00019315,2]
[363759557,1748863835889,-420.0,0.00019315,2]
[363759559,1748863835898,-697.7,0.00019315,2]
[363759561,1748863835907,-420.0,0.00019315,2]
[363759563,1748863835916,-420.0,0.00019315,2]
[363759565,1748863835926,-444.51,0.00019315,2]
[363759567,1748863835936,-420.0,0.00019315,2]
[363759569,1748863835945,-920.28,0.00019315,2]
[363759571,1748863835954,-420.0,0.00019315,2]
[363759573,1748863835963,-420.0,0.00019315,2]
[363759575,1748863835973,-420.0,0.00019315,2]
[363759577,1748863835982,-420.0,0.00019315,2]
[363759579,1748863835990,-420.0,0.00019315,2]
[363759581,1748863836000,-420.0,0.00019315,2]
[363759583,1748863836009,-1441.74,0.00019315,2]
[363759585,1748863836018,-508.73,0.00019315,2]
[363759587,1748863836027,-420.0,0.00019315,2]
[363759589,1748863836036,-420.0,0.00019315,2]